fUSD/lending_fUSD_20250301
["ID","MTS","AMOUNT","RATE_DAILY","PERIOD"]
[354971512,1740851440273,-839.64,0.00024931,2]
[354971513,1740851440283,-500.0,0.00024931,2]
[354971515,1740851440293,-500.0,0.00024931,2]
[354971517,1740851440302,-1130.42,0.00024931,2]
[354971519,1740851440312,-869.02,0.00024931,2]
[354971521,1740851440321,-820.04,0.00024931,2]
[354971523,1740851440330,-532.68,0.00024931,2]
[354971525,1740851440339,-500.0,0.00024931,2]
[354971527,1740851440349,-557.89,0.00024931,2]
[354971529,1740851440358,-500.0,0.00024931,2]
[354971531,1740851440367,-540.88,0.00024931,2]
[354971533,1740851440376,-500.0,0.00024931,2]
[354971535,1740851440385,-762.62,0.00024931,2]
[354971538,1740851440395,-500.0,0.00024931,2]
[354971540,1740851440404,-500.0,0.00024931,7]
[354971541,1740851440413,-500.0,0.00024931,2]
[354971543,1740851440422,-500.0,0.00024931,2]
[354971545,1740851440432,-500.0,0.00024931,2]
[354971547,1740851440441,-500.0,0.00024931,2]
[354971549,1740851440450,-649.12,0.00024931,2]
[354971551,1740851440460,-500.0,0.00024931,2]
[354971554,1740851440469,-570.22,0.00024931,2]
[354971556,1740851440479,-586.48,0.00024931,2]
[354971558,1740851440489,-500.0,0.00024931,2]
[354971560,1740851440498,-500.0,0.00024931,2]
[354971562,1740851440507,-582.34,0.00024931,2]
[354971564,1740851440516,-500.0,0.00024931,2]
[354971566,1740851440526,-1143.25,0.00024931,2]
[354971568,1740851440535,-673.38,0.00024931,2]
[354971570,1740851440544,-500.0,0.00024931,2]
[354971571,1740851440553,-500.0,0.00024931,2]
[354971573,1740851440563,-521.52,0.00024931,2]
[354971575,1740851440572,-885.13,0.00024931,2]
[354971577,1740851440581,-701.89,0.00024931,2]
[354971579,1740851440591,-965.95,0.00024931,2]
[354971581,1740851440600,-885.91,0.00024931,2]
[354971583,1740851440609,-500.0,0.00024931,2]
[354971586,1740851440619,-807.48,0.00024931,2]
[354971588,1740851440629,-500.0,0.00024931,2]
[354971590,1740851440638,-500.0,0.00024931,2]
[354971592,1740851440647,-784.85,0.00024931,2]
[354971593,1740851440657,-500.0,0.00024931,2]
[354971595,1740851440666,-500.0,0.00024931,2]
[354971598,1740851440676,-500.0,0.00024931,2]
[354971600,1740851440685,-500.0,0.00024931,2]
[354971602,1740851440695,-538.00233734,0.00024931,2]
[354971604,1740851440704,-618.37,0.00024931,2]
[354971606,1740851440713,-916.46,0.00024931,2]
[354971608,1740851440723,-458.41288227,0.00024931,2]
[354971610,1740851440732,-500.0,0.00024931,2]
[354971612,1740851440741,-500.0,0.00024931,2]
[354971613,1740851440750,-500.0,0.00024931,2]
[354971616,1740851440760,-300.0,0.00024931,2]
[354971618,1740851440770,-627.62,0.00024931,2]
[354971620,1740851440779,-827.82,0.00024931,2]
[354971622,1740851440789,-699.73,0.00024931,2]
[354971624,1740851440799,-501.53,0.00024931,2]
[354971626,1740851440808,-500.0,0.00024931,2]
[354971628,1740851440817,-845.84,0.00024931,2]
[354971630,1740851440826,-873.11,0.00024931,2]
[354971632,1740851440835,-500.0,0.00024931,2]
[354971634,1740851440847,-562.97,0.00024931,2]
[354971636,1740851440856,-1226.09,0.00024931,2]
[354971638,1740851440865,-500.0,0.00024931,2]
[354971639,1740851440875,-19260.46,0.00024931,2]
[354971641,1740851440884,-790.8,0.00024931,2]
[354971643,1740851440893,-510.05,0.00024931,2]
[354971645,1740851440902,-500.0,0.00024931,2]
[354971647,1740851440911,-500.0,0.00024931,2]
[354971649,1740851440920,-524.07,0.00024931,2]
[354971651,1740851440929,-1455.83,0.00024931,2]
[354971653,1740851440939,-500.0,0.00024931,2]
[354971655,1740851440948,-500.0,0.00024931,2]
[354971657,1740851440957,-2593.01,0.00024931,2]
[354971659,1740851440966,-500.0,0.00024931,2]
[354971661,1740851440976,-500.0,0.00024931,2]
[354971663,1740851440986,-1249.91,0.00024931,2]
[354971665,1740851440995,-376.94006887,0.00024931,2]
[354971668,1740851441004,-500.0,0.00024931,2]
[354971670,1740851441014,-500.0,0.00024931,2]
[354971671,1740851441023,-500.0,0.00024931,2]
[354971673,1740851441032,-500.0,0.00024931,2]
[354971675,1740851441042,-876.82,0.00024931,2]
[354971677,1740851441051,-852.89,0.00024931,2]
[354971679,1740851441060,-3411.09,0.00024931,2]
[354971681,1740851441070,-15939.77,0.00024931,2]
[354971684,1740851441079,-630.44,0.00024931,2]
[354971686,1740851441089,-500.0,0.00024931,2]
[354971688,1740851441098,-500.0,0.00024931,2]
[354971690,1740851441107,-500.0,0.00024931,2]
[354971691,1740851441117,-2835.58,0.00024931,2]
[354971693,1740851441126,-500.0,0.00024931,120]
[354971695,1740851441136,-949.15,0.00024931,2]
[354971698,1740851441146,-670.64,0.00024931,2]
[354971700,1740851441155,-500.0,0.00024931,2]
[354971702,1740851441165,-546.3,0.00024931,2]
[354971704,1740851441175,-1123.94,0.00024931,2]
[354971706,1740851441183,-500.0,0.00024931,2]
[354971708,1740851441193,-4217.05,0.00024931,2]
[354971710,1740851441202,-500.0,0.00024931,2]
[354971733,1740851441415,-1121.22,0.00024931,2]
[354971736,1740851441426,-575.37,0.00024931,2]
[354971737,1740851441437,-523.37,0.00024931,2]
[354971740,1740851441446,-1347.45,0.00024931,2]
[354971742,1740851441456,-500.0,0.00024931,2]
[354971744,1740851441465,-522.49,0.00024931,2]
[354971746,1740851441474,-223.47555478,0.00024931,2]
[354971748,1740851441483,-500.0,0.00024931,2]
[354971750,1740851441492,-500.0,0.00024931,2]
[354971752,1740851441501,-1031.98,0.00024931,2]
[354971754,1740851441510,-1243.09,0.00024931,2]
[354971756,1740851441519,-500.0,0.00024931,2]
[354971758,1740851441529,-500.0,0.00024931,2]
[354971760,1740851441538,-500.0,0.00024931,2]
[354971762,1740851441547,-655.11,0.00024931,2]
[354971764,1740851441557,-770.72,0.00024931,2]
[354971766,1740851441566,-2087.58,0.00024931,2]
[354971768,1740851441575,-500.0,0.00024931,2]
[354971770,1740851441584,-500.0,0.00024931,2]
[354971772,1740851441593,-1981.44,0.00024931,2]
[354971773,1740851441602,-532.49,0.00024931,2]
[354971775,1740851441612,-500.0,0.00024931,2]
[354971778,1740851441621,-940.75,0.00024931,2]
[354971780,1740851441630,-500.0,0.00024931,2]
[354971781,1740851441640,-535.2,0.00024931,2]
[354971784,1740851441650,-9495.86,0.00024931,2]
[354971786,1740851441659,-500.0,0.00024931,2]
[354971788,1740851441669,-932.08,0.00024931,2]
[354971790,1740851441679,-500.0,0.00024931,2]
[354971792,1740851441688,-1693.28,0.00024931,2]
[354971794,1740851441697,-517.53,0.00024931,2]
[354971796,1740851441706,-500.0,0.00024931,2]
[354971797,1740851441715,-300.0,0.00024988,2]
[354971799,1740851441725,-263.95,0.0002502,2]
[354971801,1740851441735,-499.38922407,0.00025094,2]
[354971803,1740851441744,-650.56531399,0.00025104,2]
[354971805,1740851441753,-417.29,0.00025152,2]
[354971807,1740851441762,-500.0,0.00025204,2]
[354971809,1740851441772,-500.0,0.00025204,2]
[354971811,1740851441781,-500.0,0.00025204,2]
[354971813,1740851441790,-500.0,0.00025204,2]
[354971815,1740851441799,-520.36416667,0.00025204,2]
[354971817,1740851441808,-500.0,0.00025204,2]
[354971819,1740851441818,-500.0,0.00025204,2]
[354971821,1740851441826,-500.0,0.00025204,2]
[354971823,1740851441835,-500.0,0.00025204,2]
[354971825,1740851441846,-500.0,0.00025204,2]
[354971827,1740851441855,-500.0,0.00025204,2]
[354971829,1740851441865,-312.80510063,0.00025204,2]
[354971831,1740851441874,-672.45,0.00025204,2]
[354971833,1740851441883,-500.0,0.00025204,2]
[354971835,1740851441892,-500.0,0.00025204,2]
[354971837,1740851441902,-729.55,0.00025204,2]
[354971839,1740851441911,-500.0,0.00025204,2]
[354971841,1740851441920,-500.0,0.00025204,2]
[354971843,1740851441929,-850.62,0.00025204,2]
[354971845,1740851441939,-500.0,0.00025204,2]
[354971847,1740851441951,-500.0,0.00025204,2]
[354971849,1740851441960,-500.0,0.00025204,2]
[354971851,1740851441969,-500.0,0.00025204,2]
[354971853,1740851441979,-565.09762489,0.00025204,2]
[354971855,1740851441988,-500.0,0.00025204,2]
[354971857,1740851441997,-766.0,0.00025204,2]
[354971859,1740851442007,-272.49140679,0.00025204,2]
[354971861,1740851442016,-500.0,0.00025204,2]
[354971863,1740851442025,-1622.85,0.00025204,2]
[354971865,1740851442034,-500.0,0.00025204,2]
[354971867,1740851442043,-500.0,0.00025204,2]
[354971869,1740851442053,-500.0,0.00025204,2]
[354971871,1740851442063,-1211.78,0.00025204,2]
[354971873,1740851442073,-500.0,0.00025204,2]
[354971875,1740851442082,-649.1641585,0.00025204,2]
[354971877,1740851442092,-500.0,0.00025204,2]
[354971879,1740851442102,-543.7051393,0.00025204,2]
[354971881,1740851442111,-500.0,0.00025204,2]
[354971883,1740851442120,-1187.56,0.00025204,2]
[354971885,1740851442129,-500.0,0.00025204,2]
[354971887,1740851442140,-500.0,0.00025204,2]
[354971889,1740851442149,-500.0,0.00025204,2]
[354971891,1740851442158,-500.0,0.00025204,2]
[354971893,1740851442167,-943.28,0.00025204,2]
[354971895,1740851442177,-500.0,0.00025204,2]
[354971897,1740851442187,-500.0,0.00025204,2]
[354971899,1740851442197,-829.76,0.00025204,2]
[354971901,1740851442206,-680.23,0.00025204,2]
[354971903,1740851442216,-736.79,0.00025204,2]
[354971905,1740851442226,-1495.81,0.00025204,2]
[354971907,1740851442236,-580.86,0.00025204,2]
[354971909,1740851442245,-500.0,0.00025204,2]
[354971911,1740851442255,-1149.55,0.00025204,2]
[354971913,1740851442264,-500.0,0.00025204,2]
[354971915,1740851442274,-1413.04,0.00025204,2]
[354971917,1740851442283,-660.52,0.00025204,2]
[354971919,1740851442292,-500.0,0.00025204,2]
[354971921,1740851442302,-500.0,0.00025204,2]
[354971923,1740851442311,-500.0,0.00025204,2]
[354971925,1740851442320,-1110.79,0.00025204,2]
[354971927,1740851442330,-500.0,0.00025204,2]
[354971929,1740851442339,-500.0,0.00025204,2]
[354971931,1740851442348,-590.73,0.00025204,2]
[354971933,1740851442358,-500.0,0.00025204,2]
[354971935,1740851442367,-1451.2,0.00025204,2]
[354971937,1740851442377,-500.0,0.00025204,2]
[354971939,1740851442386,-972.01,0.00025204,2]
[354971941,1740851442395,-500.0,0.00025204,2]
[354971943,1740851442405,-500.0,0.00025204,2]
[354971945,1740851442414,-500.0,0.00025204,2]
[354971947,1740851442424,-905.22,0.00025204,2]
[354971949,1740851442434,-500.0,0.00025204,2]
[354971951,1740851442443,-500.0,0.00025204,2]
[354971953,1740851442452,-544.25,0.00025204,2]
[354971955,1740851442462,-716.82,0.00025204,2]
[354971957,1740851442472,-500.0,0.00025204,2]
[354971959,1740851442481,-850.55,0.00025204,2]
[354971961,1740851442490,-500.0,0.00025204,2]
[354971963,1740851442500,-884.83,0.00025204,2]
[354971965,1740851442509,-916.03,0.00025204,2]
[354971967,1740851442519,-3144.42,0.00025204,2]
[354971969,1740851442528,-565.1,0.00025204,2]
[354971971,1740851442538,-623.92,0.00025204,2]
[354971973,1740851442548,-500.0,0.00025204,2]
[354971975,1740851442558,-1238.1,0.00025204,2]
[354971977,1740851442568,-500.0,0.00025204,2]
[354971979,1740851442578,-500.0,0.00025204,2]
[354971981,1740851442587,-229.4781696,0.00025204,2]
[354971983,1740851442596,-500.0,0.00025204,2]
[354971985,1740851442606,-500.0,0.00025204,2]
[354971987,1740851442615,-6431.02,0.00025204,2]
[354971989,1740851442624,-500.0,0.00025204,2]
[354971991,1740851442634,-622.87887955,0.00025204,2]
[354971993,1740851442643,-909.25,0.00025204,2]
[354971995,1740851442653,-500.0,0.00025204,2]
[354971997,1740851442663,-242.83124297,0.00025204,2]
[354971999,1740851442672,-191.04144826,0.00025204,2]
[354972001,1740851442682,-500.0,0.00025204,2]
[354972003,1740851442692,-264.38578149,0.00025204,2]
[354972005,1740851442701,-500.0,0.00025204,2]
[354972007,1740851442710,-500.0,0.00025204,2]
[354972009,1740851442720,-500.0,0.00025204,2]
[354972011,1740851442731,-500.0,0.00025204,2]
[354972013,1740851442740,-500.0,0.00025204,2]
[354972015,1740851442750,-500.0,0.00025205,2]
[354972017,1740851442760,-500.0,0.00025205,2]
[354972019,1740851442769,-500.0,0.00025205,2]
[354972021,1740851442778,-726.25,0.00025205,2]
[354972023,1740851442787,-822.35,0.00025205,2]
[354972025,1740851442797,-551.06,0.00025205,2]
[354972027,1740851442806,-1125.96,0.00025205,2]
[354972029,1740851442816,-1079.63,0.00025205,2]
[354972031,1740851442826,-521.38,0.00025205,2]
[354972033,1740851442836,-687.23,0.00025205,2]
[354972035,1740851442847,-816.38,0.00025205,2]
[354972037,1740851442857,-500.0,0.00025205,2]
[354972039,1740851442866,-521.7,0.00025205,2]
[354972041,1740851442876,-500.0,0.00025205,2]
[354972043,1740851442886,-500.0,0.00025205,2]
[354972045,1740851442896,-500.0,0.00025205,2]
[354972047,1740851442906,-627.86,0.00025205,2]
[354972049,1740851442915,-500.0,0.00025205,2]
[354972051,1740851442928,-839.64,0.00025205,2]
[354972053,1740851442938,-500.0,0.00025205,2]
[354972055,1740851442947,-1130.42,0.00025205,2]
[354972057,1740851442957,-869.02,0.00025205,2]
[354972059,1740851442966,-820.04,0.00025205,2]
[354972061,1740851442975,-532.68,0.00025205,2]
[354972063,1740851442984,-557.89,0.00025205,2]
[354972065,1740851442993,-540.88,0.00025205,2]
[354972067,1740851443003,-500.0,0.00025205,2]
[354972070,1740851443012,-762.62,0.00025205,2]
[354972073,1740851443021,-162.62,0.00025205,2]
[354972075,1740851443030,-644.21364172,0.00025205,7]
[354972077,1740851443040,-500.0,0.00025205,2]
[354972079,1740851443049,-500.0,0.00025205,2]
[354972081,1740851443058,-500.0,0.00025205,2]
[354972083,1740851443067,-500.0,0.00025205,2]
[354972085,1740851443077,-649.12,0.00025205,2]
[354972086,1740851443086,-500.0,0.00025205,2]
[354972088,1740851443096,-570.22,0.00025205,2]
[354972091,1740851443105,-586.48,0.00025205,2]
[354972093,1740851443115,-500.0,0.00025205,2]
[354972095,1740851443124,-582.34,0.00025205,2]
[354972097,1740851443133,-500.0,0.00025205,2]
[354972099,1740851443142,-1143.25,0.00025205,2]
[354972101,1740851443151,-673.38,0.00025205,2]
[354972103,1740851443161,-500.0,0.00025205,2]
[354972105,1740851443170,-500.0,0.00025205,2]
[354972107,1740851443180,-521.52,0.00025205,2]
[354972109,1740851443189,-885.13,0.00025205,2]
[354972111,1740851443198,-701.89,0.00025205,2]
[354972113,1740851443208,-965.95,0.00025205,2]
[354972115,1740851443217,-885.91,0.00025205,2]
[354972116,1740851443227,-500.0,0.00025205,2]
[354972118,1740851443236,-807.48,0.00025205,2]
[354972120,1740851443246,-500.0,0.00025205,2]
[354972122,1740851443255,-500.0,0.00025205,2]
[354972124,1740851443264,-784.85,0.00025205,2]
[354972126,1740851443274,-500.0,0.00025205,2]
[354972128,1740851443283,-500.0,0.00025205,2]
[354972130,1740851443292,-500.0,0.00025205,2]
[354972132,1740851443301,-500.0,0.00025205,2]
[354972134,1740851443311,-618.37,0.00025205,2]
[354972136,1740851443320,-916.46,0.00025205,2]
[354972138,1740851443329,-500.0,0.00025205,2]
[354972140,1740851443339,-500.0,0.00025205,2]
[354972142,1740851443348,-500.0,0.00025205,2]
[354972144,1740851443357,-300.0,0.00025205,2]
[354972146,1740851443366,-627.62,0.00025205,2]
[354972147,1740851443375,-827.82,0.00025205,2]
[354972149,1740851443384,-699.73,0.00025205,2]
[354972151,1740851443394,-501.53,0.00025205,2]
[354972153,1740851443404,-500.0,0.00025205,2]
[354972155,1740851443414,-845.84,0.00025205,2]
[354972157,1740851443423,-873.11,0.00025205,2]
[354972159,1740851443433,-500.0,0.00025205,2]
[354972161,1740851443442,-562.97,0.00025205,2]
[354972163,1740851443451,-1226.09,0.00025205,2]
[354972166,1740851443460,-500.0,0.00025205,2]
[354972168,1740851443469,-19260.46,0.00025205,2]
[354972170,1740851443480,-790.8,0.00025205,2]
[354972173,1740851443489,-510.05,0.00025205,2]
[354972176,1740851443499,-500.0,0.00025205,2]
[354972179,1740851443508,-500.0,0.00025205,2]
[354972182,1740851443517,-524.07,0.00025205,2]
[354972185,1740851443527,-1455.83,0.00025205,2]
[354972188,1740851443536,-500.0,0.00025205,2]
[354972191,1740851443545,-500.0,0.00025205,2]
[354972193,1740851443555,-2593.01,0.00025205,2]
[354972195,1740851443564,-500.0,0.00025205,2]
[354972197,1740851443573,-500.0,0.00025205,2]
[354972198,1740851443582,-1249.91,0.00025205,2]
[354972200,1740851443591,-876.82,0.00025205,2]
[354972202,1740851443601,-852.89,0.00025205,2]
[354972204,1740851443611,-3411.09,0.00025205,2]
[354972206,1740851443620,-15939.77,0.00025205,2]
[354972208,1740851443629,-630.44,0.00025205,2]
[354972210,1740851443638,-500.0,0.00025205,2]
[354972212,1740851443648,-500.0,0.00025205,2]
[354972214,1740851443657,-2835.58,0.00025205,2]
[354972216,1740851443665,-500.0,0.00025205,120]
[354972218,1740851443675,-949.15,0.00025205,2]
[354972220,1740851443684,-670.64,0.00025205,2]
[354972222,1740851443693,-500.0,0.00025205,2]
[354972224,1740851443702,-546.3,0.00025205,2]
[354972226,1740851443711,-1123.94,0.00025205,2]
[354972228,1740851443721,-500.0,0.00025205,2]
[354972229,1740851443730,-4217.05,0.00025205,2]
[354972231,1740851443739,-500.0,0.00025205,2]
[354972233,1740851443748,-1121.22,0.00025205,2]
[354972235,1740851443757,-575.37,0.00025205,2]
[354972237,1740851443766,-523.37,0.00025205,2]
[354972239,1740851443776,-1347.45,0.00025205,2]
[354972241,1740851443785,-500.0,0.00025205,2]
[354972243,1740851443795,-522.49,0.00025205,2]
[354972245,1740851443804,-154.73834147,0.00025205,2]
[354972247,1740851443814,-500.0,0.00025205,2]
[354972249,1740851443823,-1031.98,0.00025205,2]
[354972251,1740851443832,-1243.09,0.00025205,2]
[354972253,1740851443842,-500.0,0.00025205,2]
[354972255,1740851443854,-500.0,0.00025205,2]
[354972257,1740851443864,-500.0,0.00025205,2]
[354972259,1740851443873,-655.11,0.00025205,2]
[354972261,1740851443882,-770.72,0.00025205,2]
[354972263,1740851443892,-291.60785918,0.00025205,2]
[354972315,1740851444416,-377.41855998,0.00025205,2]
[354972318,1740851444429,-1418.55358084,0.00025205,2]
[354972319,1740851444438,-190.54560686,0.00025205,2]
[354972412,1740851445839,-539.36921137,0.00025204,2]
[354972415,1740851445851,-309.45439314,0.00025205,2]
[354972417,1740851445861,-500.0,0.00025205,2]
[354972420,1740851445870,-1981.44,0.00025205,2]
[354972423,1740851445879,-532.49,0.00025205,2]
[354972425,1740851445889,-500.0,0.00025205,2]
[354972428,1740851445899,-940.75,0.00025205,2]
[354972431,1740851445908,-500.0,0.00025205,2]
[354972434,1740851445919,-535.2,0.00025205,2]
[354972438,1740851445933,-9495.86,0.00025205,2]
[354972440,1740851445943,-500.0,0.00025205,2]
[354972443,1740851445953,-932.08,0.00025205,2]
[354972445,1740851445962,-500.0,0.00025205,2]
[354972447,1740851445972,-1693.28,0.00025205,2]
[354972449,1740851445982,-517.53,0.00025205,2]
[354972451,1740851445992,-500.0,0.00025205,2]
[354972453,1740851446002,-650.56531392,0.00025337,2]
[354972455,1740851446011,-499.38922407,0.00025357,2]
[354972457,1740851446021,-1000.0,0.00025411,2]
[354972459,1740851446030,-500.0,0.00025478,2]
[354972461,1740851446039,-500.0,0.00025478,2]
[354972463,1740851446049,-500.0,0.00025478,2]
[354972465,1740851446058,-500.0,0.00025478,2]
[354972467,1740851446067,-500.0,0.00025478,2]
[354972469,1740851446077,-500.0,0.00025478,2]
[354972471,1740851446086,-500.0,0.00025478,2]
[354972473,1740851446095,-500.0,0.00025478,2]
[354972475,1740851446105,-500.0,0.00025478,2]
[354972477,1740851446115,-500.0,0.00025478,2]
[354972479,1740851446124,-672.45,0.00025478,2]
[354972481,1740851446134,-500.0,0.00025478,2]
[354972483,1740851446143,-500.0,0.00025478,2]
[354972485,1740851446152,-729.55,0.00025478,2]
[354972487,1740851446164,-500.0,0.00025478,2]
[354972489,1740851446173,-500.0,0.00025478,2]
[354972491,1740851446183,-850.62,0.00025478,2]
[354972493,1740851446192,-500.0,0.00025478,2]
[354972495,1740851446201,-500.0,0.00025478,2]
[354972497,1740851446210,-500.0,0.00025478,2]
[354972498,1740851446219,-335.05449788,0.00025478,2]
[354972500,1740851446231,-500.0,0.00025478,2]
[354972503,1740851446240,-766.0,0.00025478,2]
[354972505,1740851446252,-500.0,0.00025478,2]
[354972507,1740851446262,-1622.85,0.00025478,2]
[354972509,1740851446271,-500.0,0.00025478,2]
[354972511,1740851446281,-500.0,0.00025478,2]
[354972512,1740851446290,-500.0,0.00025478,2]
[354972515,1740851446301,-1211.78,0.00025478,2]
[354972517,1740851446311,-500.0,0.00025478,2]
[354972518,1740851446320,-500.0,0.00025478,2]
[354972520,1740851446330,-500.0,0.00025478,2]
[354972522,1740851446340,-1187.56,0.00025478,2]
[354972524,1740851446350,-500.0,0.00025478,2]
[354972526,1740851446359,-500.0,0.00025478,2]
[354972528,1740851446369,-500.0,0.00025478,2]
[354972530,1740851446379,-500.0,0.00025478,2]
[354972532,1740851446388,-943.28,0.00025478,2]
[354972534,1740851446398,-500.0,0.00025478,2]
[354972536,1740851446407,-500.0,0.00025478,2]
[354972538,1740851446417,-829.76,0.00025478,2]
[354972540,1740851446427,-680.23,0.00025478,2]
[354972542,1740851446437,-736.79,0.00025478,2]
[354972544,1740851446446,-1495.81,0.00025478,2]
[354972546,1740851446455,-580.86,0.00025478,2]
[354972548,1740851446465,-500.0,0.00025478,2]
[354972550,1740851446474,-1149.55,0.00025478,2]
[354972552,1740851446483,-500.0,0.00025478,2]
[354972554,1740851446492,-1413.04,0.00025478,2]
[354972556,1740851446502,-660.52,0.00025478,2]
[354972558,1740851446511,-500.0,0.00025478,2]
[354972560,1740851446520,-500.0,0.00025478,2]
[354972562,1740851446530,-500.0,0.00025478,2]
[354972563,1740851446539,-1110.79,0.00025478,2]
[354972565,1740851446548,-500.0,0.00025478,2]
[354972567,1740851446558,-500.0,0.00025478,2]
[354972569,1740851446568,-590.73,0.00025478,2]
[354972571,1740851446577,-500.0,0.00025478,2]
[354972573,1740851446587,-1451.2,0.00025478,2]
[354972575,1740851446596,-500.0,0.00025478,2]
[354972577,1740851446606,-972.01,0.00025478,2]
[354972579,1740851446616,-500.0,0.00025478,2]
[354972581,1740851446625,-500.0,0.00025478,2]
[354972583,1740851446635,-500.0,0.00025478,2]
[354972584,1740851446645,-905.22,0.00025478,2]
[354972586,1740851446654,-500.0,0.00025478,2]
[354972587,1740851446663,-500.0,0.00025478,2]
[354972589,1740851446673,-544.25,0.00025478,2]
[354972591,1740851446682,-716.82,0.00025478,2]
[354972593,1740851446692,-500.0,0.00025478,2]
[354972595,1740851446702,-850.55,0.00025478,2]
[354972597,1740851446712,-511.33685309,0.00025478,2]
[354972598,1740851446723,-884.83,0.00025478,2]
[354972600,1740851446732,-916.03,0.00025478,2]
[354972602,1740851446741,-3144.42,0.00025478,2]
[354972604,1740851446751,-565.1,0.00025478,2]
[354972606,1740851446760,-623.92,0.00025478,2]
[354972608,1740851446771,-500.0,0.00025478,2]
[354972610,1740851446780,-1238.1,0.00025478,2]
[354972612,1740851446790,-500.0,0.00025478,2]
[354972614,1740851446804,-500.0,0.00025478,2]
[354972616,1740851446814,-500.0,0.00025478,2]
[354972618,1740851446824,-500.0,0.00025478,2]
[354972620,1740851446834,-6431.02,0.00025478,2]
[354972622,1740851446847,-500.0,0.00025478,2]
[354972624,1740851446858,-909.25,0.00025478,2]
[354972626,1740851446869,-500.0,0.00025478,2]
[354972627,1740851446879,-500.0,0.00025478,2]
[354972629,1740851446890,-500.0,0.00025478,2]
[354972631,1740851446900,-500.0,0.00025478,2]
[354972633,1740851446911,-500.0,0.00025478,2]
[354972635,1740851446923,-159.18,0.00025479,2]
[354972637,1740851446934,-500.0,0.00025479,2]
[354972639,1740851446944,-500.0,0.00025479,2]
[354972641,1740851446954,-726.25,0.00025479,2]
[354972643,1740851446963,-822.35,0.00025479,2]
[354972645,1740851446976,-551.06,0.00025479,2]
[354972647,1740851446985,-1125.96,0.00025479,2]
[354972649,1740851446999,-1079.63,0.00025479,2]
[354972651,1740851447009,-521.38,0.00025479,2]
[354972653,1740851447019,-687.23,0.00025479,2]
[354972655,1740851447029,-816.38,0.00025479,2]
[354972657,1740851447039,-342.17082821,0.00025479,2]
[354972659,1740851447049,-521.7,0.00025479,2]
[354972661,1740851447058,-500.0,0.00025479,2]
[354972663,1740851447068,-500.0,0.00025479,2]
[354972665,1740851447078,-500.0,0.00025479,2]
[354972667,1740851447088,-627.86,0.00025479,2]
[354972669,1740851447098,-839.64,0.00025479,2]
[354972671,1740851447107,-500.0,0.00025479,2]
[354972672,1740851447118,-1130.42,0.00025479,2]
[354972674,1740851447127,-869.02,0.00025479,2]
[354972676,1740851447137,-820.04,0.00025479,2]
[354972678,1740851447147,-532.68,0.00025479,2]
[354972680,1740851447157,-557.89,0.00025479,2]